{"text_format":"1","workbook":"xlsx","n_sheets":2,"sheets":["Fizetési adat","szelvénysablon"],"not_rendered":{"charts":0,"images":0,"macros":1,"external_links":0,"defined_names":7,"comments":0,"pivot_tables":0},"unopened":[],"bounds":{"document_bytes":16777216,"sheet_cells":100000,"rows_first":2000,"rows_last":500,"rows_between":2000,"halvings":0,"cell_chars":16384,"cell_head_chars":4096},"cells_cut":0,"cells_raw":0,"read":"whole","date_system":"1900"}

{"sheet":"Fizetési adat","index":0,"n_rows":13,"n_cols":24,"rows_kept":13,"cut":false,"hidden":false,"merged":[]}
[null,"FIZETÉSKALKULÁTOR",null,null,null,null,null,null,null,null,"IDŐSZAK VÉGE:","2013-04-08",null,"CÉG NEVE:",null,"ADVENTURE WORKS"]
[]
[null,"Szám","Dolgozó neve","Ledolgozott órák száma","Távollét","Betegszabadság","Túlóra","Túlóradíj","Bruttó fizetés","Adók és levonások","Egyéb levonás","Nettó fizetés"," ","Óradíj","Adózási státusz","Adókedvezmény kat.","Regionális adó","Jövedelemadó","Nyugdíjjárulék","Egészségügyi hozzájárulás","Visszatartott adók összesen","Biztosítási levonás","Egyéb rendes levonás","Rendes levonás össz."]
[null,1001,"Lukács Tibor",50,5,1,null,null,{"$f":"SUM(Alkalmazottak[[#This Row],[Ledolgozott órák száma]:[Betegszabadság]])*Alkalmazottak[[#This Row],[Óradíj]]+Alkalmazottak[[#This Row],[Túlóra]]*Alkalmazottak[[#This Row],[Túlóradíj]]","v":560},{"$f":"Alkalmazottak[[#This Row],[Bruttó fizetés]]*Alkalmazottak[[#This Row],[Visszatartott adók összesen]] +Alkalmazottak[[#This Row],[Rendes levonás össz.]]","v":273.08000000000004},20,{"$f":"Alkalmazottak[[#This Row],[Bruttó fizetés]]-Alkalmazottak[[#This Row],[Adók és levonások]]-Alkalmazottak[[#This Row],[Egyéb levonás]]","v":266.91999999999996},null,10,1,4,2.3E-2,0.28000000000000003,6.3E-2,1.4500000000000001E-2,{"$f":"SUM(Alkalmazottak[[#This Row],[Regionális adó]:[Egészségügyi hozzájárulás]])","v":0.38050000000000006},20,40,{"$f":"SUM(Alkalmazottak[[#This Row],[Biztosítási levonás]:[Egyéb rendes levonás]])","v":60}]
[null,1002,"Ambrus Zsolt",40,null,null,null,null,{"$f":"SUM(Alkalmazottak[[#This Row],[Ledolgozott órák száma]:[Betegszabadság]])*Alkalmazottak[[#This Row],[Óradíj]]+Alkalmazottak[[#This Row],[Túlóra]]*Alkalmazottak[[#This Row],[Túlóradíj]]","v":320},{"$f":"Alkalmazottak[[#This Row],[Bruttó fizetés]]*Alkalmazottak[[#This Row],[Visszatartott adók összesen]] +Alkalmazottak[[#This Row],[Rendes levonás össz.]]","v":131.76000000000002},null,{"$f":"Alkalmazottak[[#This Row],[Bruttó fizetés]]-Alkalmazottak[[#This Row],[Adók és levonások]]-Alkalmazottak[[#This Row],[Egyéb levonás]]","v":188.23999999999998},null,8,1,1,2.3E-2,0.28000000000000003,6.3E-2,1.4500000000000001E-2,{"$f":"SUM(Alkalmazottak[[#This Row],[Regionális adó]:[Egészségügyi hozzájárulás]])","v":0.38050000000000006},0,10,{"$f":"SUM(Alkalmazottak[[#This Row],[Biztosítási levonás]:[Egyéb rendes levonás]])","v":10}]
[null,1003,"Balázs Erzsébet",35,3,null,null,null,{"$f":"SUM(Alkalmazottak[[#This Row],[Ledolgozott órák száma]:[Betegszabadság]])*Alkalmazottak[[#This Row],[Óradíj]]+Alkalmazottak[[#This Row],[Túlóra]]*Alkalmazottak[[#This Row],[Túlóradíj]]","v":532},{"$f":"Alkalmazottak[[#This Row],[Bruttó fizetés]]*Alkalmazottak[[#This Row],[Visszatartott adók összesen]] +Alkalmazottak[[#This Row],[Rendes levonás össz.]]","v":240.42600000000004},null,{"$f":"Alkalmazottak[[#This Row],[Bruttó fizetés]]-Alkalmazottak[[#This Row],[Adók és levonások]]-Alkalmazottak[[#This Row],[Egyéb levonás]]","v":291.57399999999996},null,14,1,3,2.3E-2,0.28000000000000003,6.3E-2,1.4500000000000001E-2,{"$f":"SUM(Alkalmazottak[[#This Row],[Regionális adó]:[Egészségügyi hozzájárulás]])","v":0.38050000000000006},18,20,{"$f":"SUM(Alkalmazottak[[#This Row],[Biztosítási levonás]:[Egyéb rendes levonás]])","v":38}]
[null,1008,"Béres Kálmán",50,5,1,null,null,{"$f":"SUM(Alkalmazottak[[#This Row],[Ledolgozott órák száma]:[Betegszabadság]])*Alkalmazottak[[#This Row],[Óradíj]]+Alkalmazottak[[#This Row],[Túlóra]]*Alkalmazottak[[#This Row],[Túlóradíj]]","v":1120},{"$f":"Alkalmazottak[[#This Row],[Bruttó fizetés]]*Alkalmazottak[[#This Row],[Visszatartott adók összesen]] +Alkalmazottak[[#This Row],[Rendes levonás össz.]]","v":441.16000000000008},null,{"$f":"Alkalmazottak[[#This Row],[Bruttó fizetés]]-Alkalmazottak[[#This Row],[Adók és levonások]]-Alkalmazottak[[#This Row],[Egyéb levonás]]","v":678.83999999999992},null,20,1,0,2.3E-2,0.28000000000000003,6.3E-2,1.4500000000000001E-2,{"$f":"SUM(Alkalmazottak[[#This Row],[Regionális adó]:[Egészségügyi hozzájárulás]])","v":0.38050000000000006},15,null,{"$f":"SUM(Alkalmazottak[[#This Row],[Biztosítási levonás]:[Egyéb rendes levonás]])","v":15}]
[null,1011,"Dobándi Barbara",40,null,null,2,15,{"$f":"SUM(Alkalmazottak[[#This Row],[Ledolgozott órák száma]:[Betegszabadság]])*Alkalmazottak[[#This Row],[Óradíj]]+Alkalmazottak[[#This Row],[Túlóra]]*Alkalmazottak[[#This Row],[Túlóradíj]]","v":430},{"$f":"Alkalmazottak[[#This Row],[Bruttó fizetés]]*Alkalmazottak[[#This Row],[Visszatartott adók összesen]] +Alkalmazottak[[#This Row],[Rendes levonás össz.]]","v":223.61500000000004},null,{"$f":"Alkalmazottak[[#This Row],[Bruttó fizetés]]-Alkalmazottak[[#This Row],[Adók és levonások]]-Alkalmazottak[[#This Row],[Egyéb levonás]]","v":206.38499999999996},null,10,1,0,2.3E-2,0.28000000000000003,6.3E-2,1.4500000000000001E-2,{"$f":"SUM(Alkalmazottak[[#This Row],[Regionális adó]:[Egészségügyi hozzájárulás]])","v":0.38050000000000006},20,40,{"$f":"SUM(Alkalmazottak[[#This Row],[Biztosítási levonás]:[Egyéb rendes levonás]])","v":60}]
[null,1012,"Fischer Péter",40,5,1,null,null,{"$f":"SUM(Alkalmazottak[[#This Row],[Ledolgozott órák száma]:[Betegszabadság]])*Alkalmazottak[[#This Row],[Óradíj]]+Alkalmazottak[[#This Row],[Túlóra]]*Alkalmazottak[[#This Row],[Túlóradíj]]","v":552},{"$f":"Alkalmazottak[[#This Row],[Bruttó fizetés]]*Alkalmazottak[[#This Row],[Visszatartott adók összesen]] +Alkalmazottak[[#This Row],[Rendes levonás össz.]]","v":270.03600000000006},null,{"$f":"Alkalmazottak[[#This Row],[Bruttó fizetés]]-Alkalmazottak[[#This Row],[Adók és levonások]]-Alkalmazottak[[#This Row],[Egyéb levonás]]","v":281.96399999999994},null,12,1,4,2.3E-2,0.28000000000000003,6.3E-2,1.4500000000000001E-2,{"$f":"SUM(Alkalmazottak[[#This Row],[Regionális adó]:[Egészségügyi hozzájárulás]])","v":0.38050000000000006},20,40,{"$f":"SUM(Alkalmazottak[[#This Row],[Biztosítási levonás]:[Egyéb rendes levonás]])","v":60}]
[null,1025,"Verebélyi Ágnes",36,null,2,1,18,{"$f":"SUM(Alkalmazottak[[#This Row],[Ledolgozott órák száma]:[Betegszabadság]])*Alkalmazottak[[#This Row],[Óradíj]]+Alkalmazottak[[#This Row],[Túlóra]]*Alkalmazottak[[#This Row],[Túlóradíj]]","v":474},{"$f":"Alkalmazottak[[#This Row],[Bruttó fizetés]]*Alkalmazottak[[#This Row],[Visszatartott adók összesen]] +Alkalmazottak[[#This Row],[Rendes levonás össz.]]","v":225.35700000000003},25,{"$f":"Alkalmazottak[[#This Row],[Bruttó fizetés]]-Alkalmazottak[[#This Row],[Adók és levonások]]-Alkalmazottak[[#This Row],[Egyéb levonás]]","v":223.64299999999997},null,12,1,2,2.3E-2,0.28000000000000003,6.3E-2,1.4500000000000001E-2,{"$f":"SUM(Alkalmazottak[[#This Row],[Regionális adó]:[Egészségügyi hozzájárulás]])","v":0.38050000000000006},25,20,{"$f":"SUM(Alkalmazottak[[#This Row],[Biztosítási levonás]:[Egyéb rendes levonás]])","v":45}]
[null,1032,"Harmath Zoltán",40,5,1,null,null,{"$f":"SUM(Alkalmazottak[[#This Row],[Ledolgozott órák száma]:[Betegszabadság]])*Alkalmazottak[[#This Row],[Óradíj]]+Alkalmazottak[[#This Row],[Túlóra]]*Alkalmazottak[[#This Row],[Túlóradíj]]","v":460},{"$f":"Alkalmazottak[[#This Row],[Bruttó fizetés]]*Alkalmazottak[[#This Row],[Visszatartott adók összesen]] +Alkalmazottak[[#This Row],[Rendes levonás össz.]]","v":175.03000000000003},50,{"$f":"Alkalmazottak[[#This Row],[Bruttó fizetés]]-Alkalmazottak[[#This Row],[Adók és levonások]]-Alkalmazottak[[#This Row],[Egyéb levonás]]","v":234.96999999999997},null,10,1,3,2.3E-2,0.28000000000000003,6.3E-2,1.4500000000000001E-2,{"$f":"SUM(Alkalmazottak[[#This Row],[Regionális adó]:[Egészségügyi hozzájárulás]])","v":0.38050000000000006},null,null,{"$f":"SUM(Alkalmazottak[[#This Row],[Biztosítási levonás]:[Egyéb rendes levonás]])","v":0}]
[null,1049,"Kránitz József",40,1,null,null,null,{"$f":"SUM(Alkalmazottak[[#This Row],[Ledolgozott órák száma]:[Betegszabadság]])*Alkalmazottak[[#This Row],[Óradíj]]+Alkalmazottak[[#This Row],[Túlóra]]*Alkalmazottak[[#This Row],[Túlóradíj]]","v":615},{"$f":"Alkalmazottak[[#This Row],[Bruttó fizetés]]*Alkalmazottak[[#This Row],[Visszatartott adók összesen]] +Alkalmazottak[[#This Row],[Rendes levonás össz.]]","v":259.00750000000005},23,{"$f":"Alkalmazottak[[#This Row],[Bruttó fizetés]]-Alkalmazottak[[#This Row],[Adók és levonások]]-Alkalmazottak[[#This Row],[Egyéb levonás]]","v":332.99249999999995},null,15,1,2,2.3E-2,0.28000000000000003,6.3E-2,1.4500000000000001E-2,{"$f":"SUM(Alkalmazottak[[#This Row],[Regionális adó]:[Egészségügyi hozzájárulás]])","v":0.38050000000000006},25,null,{"$f":"SUM(Alkalmazottak[[#This Row],[Biztosítási levonás]:[Egyéb rendes levonás]])","v":25}]
[null,"Összesen",{"$f":"SUBTOTAL(103,Alkalmazottak[Dolgozó neve])","v":9},{"$f":"SUBTOTAL(109,Alkalmazottak[Ledolgozott órák száma])","v":371},{"$f":"SUBTOTAL(109,Alkalmazottak[Távollét])","v":24},{"$f":"SUBTOTAL(109,Alkalmazottak[Betegszabadság])","v":6},{"$f":"SUBTOTAL(109,Alkalmazottak[Túlóra])","v":3},null,{"$f":"SUBTOTAL(109,Alkalmazottak[Bruttó fizetés])","v":5063},{"$f":"SUBTOTAL(109,Alkalmazottak[Adók és levonások])","v":2239.4715000000001},{"$f":"SUBTOTAL(109,Alkalmazottak[Egyéb levonás])","v":118},{"$f":"SUBTOTAL(109,Alkalmazottak[Nettó fizetés])","v":2705.5284999999994},null,null,null,null,null,null,null,null,null,{"$f":"SUBTOTAL(109,Alkalmazottak[Biztosítási levonás])","v":143},{"$f":"SUBTOTAL(109,Alkalmazottak[Egyéb rendes levonás])","v":170},{"$f":"SUBTOTAL(109,Alkalmazottak[Rendes levonás össz.])","v":313}]

{"sheet":"szelvénysablon","index":1,"n_rows":47,"n_cols":13,"rows_kept":47,"cut":false,"hidden":true,"merged":[[45,2,45,3],[32,2,32,3],[33,2,33,3],[20,2,20,3],[21,2,21,3],[2,3,2,4],[14,3,14,4],[26,3,26,4],[38,3,38,4],[44,2,44,3],[8,2,8,3],[9,2,9,3],[2,7,2,8],[14,7,14,8],[26,7,26,8],[38,7,38,8],[38,11,38,12],[26,11,26,12],[14,11,14,12],[2,11,2,12]]}
[]
[null,null,{"$f":"Cégnév","v":"ADVENTURE WORKS"}]
[null,null,"IDŐSZAK",{"$f":"IdőszakVége","v":41372},null,null,"NÉV",{"$f":"IFERROR(INDEX(Alkalmazottak[Dolgozó neve],Szelvény),\"\")","v":"Lukács Tibor"},null,null,"DOLGOZÓ SZÁMA",{"$f":"IFERROR(INDEX(Alkalmazottak[Szám],Szelvény),\"\")","v":1001}]
[null,null,"Adózási státusz",null,{"$f":"IFERROR(INDEX(Alkalmazottak[Adózási státusz],Szelvény),\"\")","v":1},null,"Adókedvezmény kategóriája",null,{"$f":"IFERROR(INDEX(Alkalmazottak[Adókedvezmény kat.],Szelvény),\"\")","v":4},null,"Ledolgozott órák száma",null,{"$f":"IFERROR(INDEX(Alkalmazottak[Ledolgozott órák száma],Szelvény),\"\")","v":50}]
[null,null,"Óradíj",null,{"$f":"IFERROR(INDEX(Alkalmazottak[Óradíj],Szelvény),\"\")","v":10},null,"Túlóradíj",null,{"$f":"IFERROR(INDEX(Alkalmazottak[Túlóradíj],Szelvény),\"\")","v":0},null,"Betegszabadság",null,{"$f":"IFERROR(INDEX(Alkalmazottak[Betegszabadság],Szelvény),\"\")","v":1}]
[null,null,"Nyugdíjjárulék",null,{"$f":"IFERROR(INDEX(Alkalmazottak[Nyugdíjjárulék],Szelvény)  *  INDEX(Alkalmazottak[Bruttó fizetés],Szelvény),\"\")","v":35.28},null,"Jövedelemadó",null,{"$f":"IFERROR(INDEX(Alkalmazottak[Jövedelemadó],Szelvény)  *  INDEX(Alkalmazottak[Bruttó fizetés],Szelvény),\"\")","v":156.80000000000001},null,"Távollét",null,{"$f":"IFERROR(INDEX(Alkalmazottak[Távollét],Szelvény),\"\")","v":5}]
[null,null,"Egészségügyi hozzájárulás",null,{"$f":"IFERROR(INDEX(Alkalmazottak[Egészségügyi hozzájárulás],Szelvény)  *  INDEX(Alkalmazottak[Bruttó fizetés],Szelvény),\"\")","v":8.120000000000001},null,"Regionális adó",null,{"$f":"IFERROR(INDEX(Alkalmazottak[Regionális adó],Szelvény)  *  INDEX(Alkalmazottak[Bruttó fizetés],Szelvény),\"\")","v":12.879999999999999},null,"Túlóra",null,{"$f":"IFERROR(INDEX(Alkalmazottak[Túlóra],Szelvény),\"\")","v":0}]
[null,null,"Biztosítási levonás",null,{"$f":"IFERROR(INDEX(Alkalmazottak[Biztosítási levonás],Szelvény),\"\")","v":20},null,"Egyéb rendes levonás",null,{"$f":"IFERROR(INDEX(Alkalmazottak[Egyéb rendes levonás],Szelvény),\"\")","v":40},null,"Bruttó fizetés",null,{"$f":"IFERROR(INDEX(Alkalmazottak[Bruttó fizetés],Szelvény),\"\")","v":560}]
[null,null,"Adók és",null,{"$f":"IFERROR(INDEX(Alkalmazottak[Adók és levonások],Szelvény),\"\")","v":273.08000000000004},null,"Egyéb levonás",null,{"$f":"IFERROR(INDEX(Alkalmazottak[Egyéb levonás],Szelvény),\"\")","v":20},null,"Adók és levonások összesen",null,{"$f":"IFERROR(INDEX(Alkalmazottak[Adók és levonások],Szelvény)  +  INDEX(Alkalmazottak[Egyéb levonás],Szelvény),\"\")","v":293.08000000000004}]
[null,null,"rendes levonások"]
[null,null,null,null,null,null,null,null,null,null,"NETTÓ FIZETÉS",null,{"$f":"IFERROR(INDEX(Alkalmazottak[Nettó fizetés],Szelvény),\"\")","v":266.91999999999996}]
[]
[]
[null,null,{"$f":"Cégnév","v":"ADVENTURE WORKS"}]
[null,null,"IDŐSZAK",{"$f":"IdőszakVége","v":41372},null,null,"NÉV",{"$f":"IFERROR(INDEX(Alkalmazottak[Dolgozó neve],Szelvény),\"\")","v":"Ambrus Zsolt"},null,null,"DOLGOZÓ SZÁMA",{"$f":"IFERROR(INDEX(Alkalmazottak[Szám],Szelvény),\"\")","v":1002}]
[null,null,"Adózási státusz",null,{"$f":"IFERROR(INDEX(Alkalmazottak[Adózási státusz],Szelvény),\"\")","v":1},null,"Adókedvezmény kategóriája",null,{"$f":"IFERROR(INDEX(Alkalmazottak[Adókedvezmény kat.],Szelvény),\"\")","v":1},null,"Ledolgozott órák száma",null,{"$f":"IFERROR(INDEX(Alkalmazottak[Ledolgozott órák száma],Szelvény),\"\")","v":40}]
[null,null,"Óradíj",null,{"$f":"IFERROR(INDEX(Alkalmazottak[Óradíj],Szelvény),\"\")","v":8},null,"Túlóradíj",null,{"$f":"IFERROR(INDEX(Alkalmazottak[Túlóradíj],Szelvény),\"\")","v":0},null,"Betegszabadság",null,{"$f":"IFERROR(INDEX(Alkalmazottak[Betegszabadság],Szelvény),\"\")","v":0}]
[null,null,"Nyugdíjjárulék",null,{"$f":"IFERROR(INDEX(Alkalmazottak[Nyugdíjjárulék],Szelvény)  *  INDEX(Alkalmazottak[Bruttó fizetés],Szelvény),\"\")","v":20.16},null,"Jövedelemadó",null,{"$f":"IFERROR(INDEX(Alkalmazottak[Jövedelemadó],Szelvény)  *  INDEX(Alkalmazottak[Bruttó fizetés],Szelvény),\"\")","v":89.600000000000009},null,"Távollét",null,{"$f":"IFERROR(INDEX(Alkalmazottak[Távollét],Szelvény),\"\")","v":0}]
[null,null,"Egészségügyi hozzájárulás",null,{"$f":"IFERROR(INDEX(Alkalmazottak[Egészségügyi hozzájárulás],Szelvény)  *  INDEX(Alkalmazottak[Bruttó fizetés],Szelvény),\"\")","v":4.6400000000000006},null,"Regionális adó",null,{"$f":"IFERROR(INDEX(Alkalmazottak[Regionális adó],Szelvény)  *  INDEX(Alkalmazottak[Bruttó fizetés],Szelvény),\"\")","v":7.3599999999999994},null,"Túlóra",null,{"$f":"IFERROR(INDEX(Alkalmazottak[Túlóra],Szelvény),\"\")","v":0}]
[null,null,"Biztosítási levonás",null,{"$f":"IFERROR(INDEX(Alkalmazottak[Biztosítási levonás],Szelvény),\"\")","v":0},null,"Egyéb rendes levonás",null,{"$f":"IFERROR(INDEX(Alkalmazottak[Egyéb rendes levonás],Szelvény),\"\")","v":10},null,"Bruttó fizetés",null,{"$f":"IFERROR(INDEX(Alkalmazottak[Bruttó fizetés],Szelvény),\"\")","v":320}]
[null,null,"Adók és",null,{"$f":"IFERROR(INDEX(Alkalmazottak[Adók és levonások],Szelvény),\"\")","v":131.76000000000002},null,"Egyéb levonás",null,{"$f":"IFERROR(INDEX(Alkalmazottak[Egyéb levonás],Szelvény),\"\")","v":0},null,"Adók és levonások összesen",null,{"$f":"IFERROR(INDEX(Alkalmazottak[Adók és levonások],Szelvény)  +  INDEX(Alkalmazottak[Egyéb levonás],Szelvény),\"\")","v":131.76000000000002}]
[null,null,"rendes levonások"]
[null,null,null,null,null,null,null,null,null,null,"NETTÓ FIZETÉS",null,{"$f":"IFERROR(INDEX(Alkalmazottak[Nettó fizetés],Szelvény),\"\")","v":188.23999999999998}]
[]
[]
[null,null,{"$f":"Cégnév","v":"ADVENTURE WORKS"}]
[null,null,"IDŐSZAK",{"$f":"IdőszakVége","v":41372},null,null,"NÉV",{"$f":"IFERROR(INDEX(Alkalmazottak[Dolgozó neve],Szelvény),\"\")","v":"Balázs Erzsébet"},null,null,"DOLGOZÓ SZÁMA",{"$f":"IFERROR(INDEX(Alkalmazottak[Szám],Szelvény),\"\")","v":1003}]
[null,null,"Adózási státusz",null,{"$f":"IFERROR(INDEX(Alkalmazottak[Adózási státusz],Szelvény),\"\")","v":1},null,"Adókedvezmény kategóriája",null,{"$f":"IFERROR(INDEX(Alkalmazottak[Adókedvezmény kat.],Szelvény),\"\")","v":3},null,"Ledolgozott órák száma",null,{"$f":"IFERROR(INDEX(Alkalmazottak[Ledolgozott órák száma],Szelvény),\"\")","v":35}]
[null,null,"Óradíj",null,{"$f":"IFERROR(INDEX(Alkalmazottak[Óradíj],Szelvény),\"\")","v":14},null,"Túlóradíj",null,{"$f":"IFERROR(INDEX(Alkalmazottak[Túlóradíj],Szelvény),\"\")","v":0},null,"Betegszabadság",null,{"$f":"IFERROR(INDEX(Alkalmazottak[Betegszabadság],Szelvény),\"\")","v":0}]
[null,null,"Nyugdíjjárulék",null,{"$f":"IFERROR(INDEX(Alkalmazottak[Nyugdíjjárulék],Szelvény)  *  INDEX(Alkalmazottak[Bruttó fizetés],Szelvény),\"\")","v":33.515999999999998},null,"Jövedelemadó",null,{"$f":"IFERROR(INDEX(Alkalmazottak[Jövedelemadó],Szelvény)  *  INDEX(Alkalmazottak[Bruttó fizetés],Szelvény),\"\")","v":148.96},null,"Távollét",null,{"$f":"IFERROR(INDEX(Alkalmazottak[Távollét],Szelvény),\"\")","v":3}]
[null,null,"Egészségügyi hozzájárulás",null,{"$f":"IFERROR(INDEX(Alkalmazottak[Egészségügyi hozzájárulás],Szelvény)  *  INDEX(Alkalmazottak[Bruttó fizetés],Szelvény),\"\")","v":7.7140000000000004},null,"Regionális adó",null,{"$f":"IFERROR(INDEX(Alkalmazottak[Regionális adó],Szelvény)  *  INDEX(Alkalmazottak[Bruttó fizetés],Szelvény),\"\")","v":12.236000000000001},null,"Túlóra",null,{"$f":"IFERROR(INDEX(Alkalmazottak[Túlóra],Szelvény),\"\")","v":0}]
[null,null,"Biztosítási levonás",null,{"$f":"IFERROR(INDEX(Alkalmazottak[Biztosítási levonás],Szelvény),\"\")","v":18},null,"Egyéb rendes levonás",null,{"$f":"IFERROR(INDEX(Alkalmazottak[Egyéb rendes levonás],Szelvény),\"\")","v":20},null,"Bruttó fizetés",null,{"$f":"IFERROR(INDEX(Alkalmazottak[Bruttó fizetés],Szelvény),\"\")","v":532}]
[null,null,"Adók és",null,{"$f":"IFERROR(INDEX(Alkalmazottak[Adók és levonások],Szelvény),\"\")","v":240.42600000000004},null,"Egyéb levonás",null,{"$f":"IFERROR(INDEX(Alkalmazottak[Egyéb levonás],Szelvény),\"\")","v":0},null,"Adók és levonások összesen",null,{"$f":"IFERROR(INDEX(Alkalmazottak[Adók és levonások],Szelvény)  +  INDEX(Alkalmazottak[Egyéb levonás],Szelvény),\"\")","v":240.42600000000004}]
[null,null,"rendes levonások"]
[null,null,null,null,null,null,null,null,null,null,"NETTÓ FIZETÉS",null,{"$f":"IFERROR(INDEX(Alkalmazottak[Nettó fizetés],Szelvény),\"\")","v":291.57399999999996}]
[]
[]
[null,null,{"$f":"Cégnév","v":"ADVENTURE WORKS"}]
[null,null,"IDŐSZAK",{"$f":"IdőszakVége","v":41372},null,null,"NÉV",{"$f":"IFERROR(INDEX(Alkalmazottak[Dolgozó neve],Szelvény),\"\")","v":"Béres Kálmán"},null,null,"DOLGOZÓ SZÁMA",{"$f":"IFERROR(INDEX(Alkalmazottak[Szám],Szelvény),\"\")","v":1008}]
[null,null,"Adózási státusz",null,{"$f":"IFERROR(INDEX(Alkalmazottak[Adózási státusz],Szelvény),\"\")","v":1},null,"Adókedvezmény kategóriája",null,{"$f":"IFERROR(INDEX(Alkalmazottak[Adókedvezmény kat.],Szelvény),\"\")","v":0},null,"Ledolgozott órák száma",null,{"$f":"IFERROR(INDEX(Alkalmazottak[Ledolgozott órák száma],Szelvény),\"\")","v":50}]
[null,null,"Óradíj",null,{"$f":"IFERROR(INDEX(Alkalmazottak[Óradíj],Szelvény),\"\")","v":20},null,"Túlóradíj",null,{"$f":"IFERROR(INDEX(Alkalmazottak[Túlóradíj],Szelvény),\"\")","v":0},null,"Betegszabadság",null,{"$f":"IFERROR(INDEX(Alkalmazottak[Betegszabadság],Szelvény),\"\")","v":1}]
[null,null,"Nyugdíjjárulék",null,{"$f":"IFERROR(INDEX(Alkalmazottak[Nyugdíjjárulék],Szelvény)  *  INDEX(Alkalmazottak[Bruttó fizetés],Szelvény),\"\")","v":70.56},null,"Jövedelemadó",null,{"$f":"IFERROR(INDEX(Alkalmazottak[Jövedelemadó],Szelvény)  *  INDEX(Alkalmazottak[Bruttó fizetés],Szelvény),\"\")","v":313.60000000000002},null,"Távollét",null,{"$f":"IFERROR(INDEX(Alkalmazottak[Távollét],Szelvény),\"\")","v":5}]
[null,null,"Egészségügyi hozzájárulás",null,{"$f":"IFERROR(INDEX(Alkalmazottak[Egészségügyi hozzájárulás],Szelvény)  *  INDEX(Alkalmazottak[Bruttó fizetés],Szelvény),\"\")","v":16.240000000000002},null,"Regionális adó",null,{"$f":"IFERROR(INDEX(Alkalmazottak[Regionális adó],Szelvény)  *  INDEX(Alkalmazottak[Bruttó fizetés],Szelvény),\"\")","v":25.759999999999998},null,"Túlóra",null,{"$f":"IFERROR(INDEX(Alkalmazottak[Túlóra],Szelvény),\"\")","v":0}]
[null,null,"Biztosítási levonás",null,{"$f":"IFERROR(INDEX(Alkalmazottak[Biztosítási levonás],Szelvény),\"\")","v":15},null,"Egyéb rendes levonás",null,{"$f":"IFERROR(INDEX(Alkalmazottak[Egyéb rendes levonás],Szelvény),\"\")","v":0},null,"Bruttó fizetés",null,{"$f":"IFERROR(INDEX(Alkalmazottak[Bruttó fizetés],Szelvény),\"\")","v":1120}]
[null,null,"Adók és",null,{"$f":"IFERROR(INDEX(Alkalmazottak[Adók és levonások],Szelvény),\"\")","v":441.16000000000008},null,"Egyéb levonás",null,{"$f":"IFERROR(INDEX(Alkalmazottak[Egyéb levonás],Szelvény),\"\")","v":0},null,"Adók és levonások összesen",null,{"$f":"IFERROR(INDEX(Alkalmazottak[Adók és levonások],Szelvény)  +  INDEX(Alkalmazottak[Egyéb levonás],Szelvény),\"\")","v":441.16000000000008}]
[null,null,"rendes levonások"]
[null,null,null,null,null,null,null,null,null,null,"NETTÓ FIZETÉS",null,{"$f":"IFERROR(INDEX(Alkalmazottak[Nettó fizetés],Szelvény),\"\")","v":678.83999999999992}]